[Event "Estonian Women's Chess Championship 2022"]
[Site "Tallinn, Paul Keres Chess House, Estonia"]
[Date "2022.12.10"]
[Round "1.1"]
[White "Ivanova, Lidia"]
[Black "Haapsal, Maria Ioanna"]
[Result "1-0"]
[TimeControl "90 minutes for first 40 moves and 15 min. for the rest of the game with 30 sec. increment from move 1"]
[WhiteFideId "4506480"]
[BlackFideId "4512286"]
[WhiteElo "1482"]
[BlackElo "1386"]

1. e4 {

[%clk 01:30:58]

} {

[%emt 02:59:38]

} c5 {

[%clk 01:30:40]

} {

[%emt 00:00:24]

} 2. f4 {

[%clk 01:31:21]

} {

[%emt 00:00:06]

} e6 {

[%clk 01:30:53]

} {

[%emt 00:00:17]

} 3. Nf3 {

[%clk 01:31:43]

} {

[%emt 00:00:08]

} Nc6 {

[%clk 01:30:38]

} {

[%emt 00:00:45]

} 4. Bb5 {

[%clk 01:32:02]

} {

[%emt 00:00:10]

} Nge7 {

[%clk 01:30:10]

} {

[%emt 00:00:58]

} 5. O-O {

[%clk 01:31:14]

} {

[%emt 00:01:18]

} a6 {

[%clk 01:28:57]

} {

[%emt 00:01:44]

} 6. Bxc6 {

[%clk 01:31:35]

} {

[%emt 00:00:09]

} Nxc6 {

[%clk 01:29:17]

} {

[%emt 00:00:10]

} 7. Kh1 {

[%clk 01:28:13]

} {

[%emt 00:03:51]

} g6 {

[%clk 01:19:25]

} {

[%emt 00:10:22]

} 8. d4 {

[%clk 01:26:12]

} {

[%emt 00:02:31]

} cxd4 {

[%clk 01:18:16]

} {

[%emt 00:01:40]

} 9. Nxd4 {

[%clk 01:26:25]

} {

[%emt 00:00:17]

} d5 {

[%clk 01:07:50]

} {

[%emt 00:10:56]

} 10. exd5 {

[%clk 01:22:32]

} {

[%emt 00:04:22]

} Qxd5 {

[%clk 01:06:49]

} {

[%emt 00:01:32]

} 11. Nxc6 {

[%clk 01:22:22]

} {

[%emt 00:00:40]

} bxc6 {

[%clk 01:06:18]

} {

[%emt 00:01:01]

} 12. Nc3 {

[%clk 01:22:01]

} {

[%emt 00:00:51]

} Qd7 {

[%clk 01:03:49]

} {

[%emt 00:02:58]

} 13. Ne4 {

[%clk 01:21:39]

} {

[%emt 00:00:52]

} Be7 {

[%clk 01:02:01]

} {

[%emt 00:02:18]

} 14. Be3 {

[%clk 01:14:00]

} {

[%emt 00:08:09]

} Qxd1 {

[%clk 00:53:03]

} {

[%emt 00:09:29]

} 15. Raxd1 {

[%clk 01:14:03]

} {

[%emt 00:00:26]

} O-O {

[%clk 00:51:33]

} {

[%emt 00:02:00]

} 16. Bc5 {

[%clk 01:12:11]

} {

[%emt 00:02:23]

} Re8 {

[%clk 00:42:13]

} {

[%emt 00:09:51]

} 17. Bxe7 {

[%clk 01:11:48]

} {

[%emt 00:00:52]

} Rxe7 {

[%clk 00:42:41]

} {

[%emt 00:00:03]

} 18. Nc5 {

[%clk 01:12:06]

} {

[%emt 00:00:12]

} e5 {

[%clk 00:35:40]

} {

[%emt 00:07:30]

} 19. Rd8+ {

[%clk 01:11:32]

} {

[%emt 00:01:02]

} Kg7 {

[%clk 00:36:09]

} {

[%emt 00:00:02]

} 20. Re1 {

[%clk 01:00:54]

} {

[%emt 00:11:08]

} f6 {

[%clk 00:32:25]

} {

[%emt 00:04:14]

} 21. Rd6 {

[%clk 00:54:49]

} {

[%emt 00:06:34]

} Bf5 {

[%clk 00:23:28]

} {

[%emt 00:09:27]

} 22. Rxc6 {

[%clk 00:40:54]

} {

[%emt 00:14:24]

} e4 {

[%clk 00:19:11]

} {

[%emt 00:04:48]

} 23. h3 {

[%clk 00:38:56]

} {

[%emt 00:02:27]

} h5 {

[%clk 00:19:27]

} {

[%emt 00:00:15]

} 24. Nxa6 {

[%clk 00:36:48]

} {

[%emt 00:02:38]

} e3 {

[%clk 00:15:49]

} {

[%emt 00:04:07]

} 25. Nb4 {

[%clk 00:34:09]

} {

[%emt 00:03:09]

} Rd8 {

[%clk 00:15:07]

} {

[%emt 00:01:12]

} 26. Rc3 {

[%clk 00:29:53]

} {

[%emt 00:04:46]

} e2 {

[%clk 00:13:49]

} {

[%emt 00:01:49]

} 27. Nd3 {

[%clk 00:30:03]

} {

[%emt 00:00:19]

} Re3 {

[%clk 00:12:06]

} {

[%emt 00:02:14]

} 28. Kg1 {

[%clk 00:29:05]

} {

[%emt 00:01:27]

} h4 {

[%clk 00:06:23]

} {

[%emt 00:06:13]

} 29. Kf2 {

[%clk 00:29:02]

} {

[%emt 00:00:33]

} Rde8 {

[%clk 00:06:43]

} {

[%emt 00:00:11]

} 30. Rc7+ {

[%clk 00:23:46]

} {

[%emt 00:05:44]

} Kh6 {

[%clk 00:07:00]

} {

[%emt 00:00:14]

} 31. Nc1 {

[%clk 00:23:37]

} {

[%emt 00:00:39]

} g5 {

[%clk 00:04:49]

} {

[%emt 00:02:42]

} 32. fxg5+ {

[%clk 00:22:31]

} {

[%emt 00:01:35]

} fxg5 {

[%clk 00:05:18]

} {

[%emt 00:00:01]

} 33. Rxe2 {

[%clk 00:21:52]

} {

[%emt 00:01:09]

} Rxe2+ {

[%clk 00:05:25]

} {

[%emt 00:00:24]

} 34. Nxe2 {

[%clk 00:22:15]

} {

[%emt 00:00:07]

} g4 {

[%clk 00:05:19]

} {

[%emt 00:00:36]

} 35. hxg4 {

[%clk 00:21:56]

} {

[%emt 00:00:49]

} Bxg4 {

[%clk 00:05:41]

} {

[%emt 00:00:08]

} 36. Nd4 {

[%clk 00:22:05]

} {

[%emt 00:00:21]

} Rd8 {

[%clk 00:04:47]

} {

[%emt 00:01:24]

} 37. Nf3 {

[%clk 00:21:41]

} {

[%emt 00:00:54]

} Rf8 {

[%clk 00:04:53]

} {

[%emt 00:00:24]

} 38. Rc3 {

[%clk 00:21:49]

} {

[%emt 00:00:23]

} Rf5 {

[%clk 00:02:32]

} {

[%emt 00:02:52]

} 39. a4 {

[%clk 00:20:53]

} {

[%emt 00:01:25]

} Kh5 {

[%clk 00:01:40]

} {

[%emt 00:01:22]

} 40. b4 {

[%clk 00:35:07]

} {

[%emt 00:01:16]

} Rf4 {

[%clk 00:16:34]

} {

[%emt 00:00:35]

} 41. Rb3 {

[%clk 00:26:05]

} {

[%emt 00:09:34]

} Bd7 {

[%clk 00:14:32]

} {

[%emt 00:02:33]

} 42. b5 {

[%clk 00:23:15]

} {

[%emt 00:03:20]

} Rxa4 {

[%clk 00:14:12]

} {

[%emt 00:00:49]

} 43. b6 {

[%clk 00:23:35]

} {

[%emt 00:00:10]

} Ra8 {

[%clk 00:14:01]

} {

[%emt 00:00:42]

} 44. b7 {

[%clk 00:21:10]

} {

[%emt 00:02:54]

} Rb8 {

[%clk 00:14:23]

} {

[%emt 00:00:08]

} 45. Ne5 {

[%clk 00:21:17]

} {

[%emt 00:00:23]

} Ba4 {

[%clk 00:14:18]

} {

[%emt 00:00:35]

} 46. Rb4 {

[%clk 00:19:45]

} {

[%emt 00:02:02]

} Be8 {

[%clk 00:12:39]

} {

[%emt 00:02:09]

} 47. c4 {

[%clk 00:18:55]

} {

[%emt 00:01:20]

} Kg5 {

[%clk 00:12:38]

} {

[%emt 00:00:31]

} 48. c5 {

[%clk 00:18:25]

} {

[%emt 00:01:00]

} Kf6 {

[%clk 00:12:51]

} {

[%emt 00:00:17]

} 49. c6 {

[%clk 00:17:17]

} {

[%emt 00:01:38]

} Kxe5 {

[%clk 00:12:40]

} {

[%emt 00:00:41]

} 50. c7 {

[%clk 00:17:36]

} {

[%emt 00:00:11]

} Rxb7 {

[%clk 00:12:35]

} {

[%emt 00:00:35]

} 51. Rxb7 {

[%clk 00:16:29]

} {

[%emt 00:01:36]

} Bd7 {

[%clk 00:12:31]

} {

[%emt 00:00:35]

} 52. Rb8 {

[%clk 00:16:51]

} {

[%emt 00:00:08]

} Kd5 {

[%emt 00:01:02]

} 1-0

[Event "Estonian Women's Chess Championship 2022"]
[Site "Tallinn, Paul Keres Chess House, Estonia"]
[Date "2022.12.10"]
[Round "1.2"]
[White "Sinitsina, Anastassia"]
[Black "Levchenko, Marina"]
[Result "1-0"]
[TimeControl "90 minutes for first 40 moves and 15 min. for the rest of the game with 30 sec. increment from move 1"]
[WhiteTitle "WFM"]
[WhiteFideId "4504640"]
[BlackFideId "4508548"]
[WhiteElo "2175"]
[BlackElo "1625"]

1. Nf3 {

[%clk 01:30:50]

} {

[%emt 00:00:09]

} d5 {

[%clk 01:30:47]

} {

[%emt 00:00:14]

} 2. g3 {

[%clk 01:31:14]

} {

[%emt 00:00:06]

} c6 {

[%clk 01:31:07]

} {

[%emt 00:00:09]

} 3. Bg2 {

[%clk 01:31:38]

} {

[%emt 00:00:05]

} Bg4 {

[%clk 01:31:08]

} {

[%emt 00:00:30]

} 4. b3 {

[%clk 01:31:15]

} {

[%emt 00:00:53]

} Nd7 {

[%clk 01:30:40]

} {

[%emt 00:00:58]

} 5. Bb2 {

[%clk 01:31:34]

} {

[%emt 00:00:12]

} Ngf6 {

[%clk 01:30:17]

} {

[%emt 00:00:53]

} 6. d3 {

[%clk 01:30:48]

} {

[%emt 00:01:16]

} e6 {

[%clk 01:28:55]

} {

[%emt 00:01:52]

} 7. Nbd2 {

[%clk 01:30:28]

} {

[%emt 00:00:50]

} Be7 {

[%clk 01:27:54]

} {

[%emt 00:01:31]

} 8. O-O {

[%clk 01:30:22]

} {

[%emt 00:00:36]

} O-O {

[%clk 01:27:27]

} {

[%emt 00:00:56]

} 9. h3 {

[%clk 01:29:39]

} {

[%emt 00:01:13]

} Bh5 {

[%clk 01:26:33]

} {

[%emt 00:01:24]

} 10. e4 {

[%clk 01:27:47]

} {

[%emt 00:02:23]

} Nb6 {

[%clk 01:19:54]

} {

[%emt 00:07:08]

} 11. Qe2 {

[%clk 01:25:51]

} {

[%emt 00:02:26]

} Rc8 {

[%clk 01:14:34]

} {

[%emt 00:05:50]

} 12. g4 {

[%clk 01:18:13]

} {

[%emt 00:08:07]

} Bg6 {

[%clk 01:14:29]

} {

[%emt 00:00:36]

} 13. Ne5 {

[%clk 01:18:31]

} {

[%emt 00:00:12]

} Nfd7 {

[%clk 01:10:40]

} {

[%emt 00:04:19]

} 14. Nxd7 {

[%clk 01:16:48]

} {

[%emt 00:02:13]

} Qxd7 {

[%clk 01:09:05]

} {

[%emt 00:02:05]

} 15. f4 {

[%clk 01:15:37]

} {

[%emt 00:01:42]

} f6 {

[%clk 01:00:24]

} {

[%emt 00:09:10]

} 16. Nf3 {

[%clk 01:14:44]

} {

[%emt 00:01:23]

} c5 {

[%clk 00:58:44]

} {

[%emt 00:02:10]

} 17. c4 {

[%clk 01:12:29]

} {

[%emt 00:02:46]

} Bf7 {

[%clk 00:52:46]

} {

[%emt 00:06:27]

} 18. Rfe1 {

[%clk 01:09:21]

} {

[%emt 00:03:37]

} Rfe8 {

[%clk 00:50:47]

} {

[%emt 00:02:29]

} 19. e5 {

[%clk 01:08:42]

} {

[%emt 00:01:10]

} d4 {

[%clk 00:48:24]

} {

[%emt 00:02:53]

} 20. Bc1 {

[%clk 01:06:36]

} {

[%emt 00:02:36]

} Bd8 {

[%clk 00:42:00]

} {

[%emt 00:06:54]

} 21. exf6 {

[%clk 01:05:33]

} {

[%emt 00:01:33]

} gxf6 {

[%clk 00:38:50]

} {

[%emt 00:03:40]

} 22. Qf2 {

[%clk 01:04:05]

} {

[%emt 00:01:58]

} Bg6 {

[%clk 00:36:45]

} {

[%emt 00:02:35]

} 23. Bf1 {

[%clk 01:04:03]

} {

[%emt 00:00:32]

} Bc7 {

[%clk 00:35:27]

} {

[%emt 00:01:48]

} 24. Nh4 {

[%clk 01:03:55]

} {

[%emt 00:00:37]

} Bf7 {

[%clk 00:29:34]

} {

[%emt 00:06:23]

} 25. Bg2 {

[%clk 01:03:50]

} {

[%emt 00:00:35]

} Bd6 {

[%clk 00:28:03]

} {

[%emt 00:02:01]

} 26. Bd2 {

[%clk 01:02:51]

} {

[%emt 00:01:30]

} Qc7 {

[%clk 00:26:33]

} {

[%emt 00:02:00]

} 27. Be4 {

[%clk 01:02:10]

} {

[%emt 00:01:10]

} Kh8 {

[%clk 00:25:57]

} {

[%emt 00:01:06]

} 28. Ng2 {

[%clk 01:01:42]

} {

[%emt 00:00:58]

} Bg6 {

[%clk 00:22:34]

} {

[%emt 00:03:53]

} 29. Qh4 {

[%clk 00:59:05]

} {

[%emt 00:03:07]

} f5 {

[%clk 00:16:21]

} {

[%emt 00:06:43]

} 30. gxf5 {

[%clk 00:58:22]

} {

[%emt 00:01:14]

} Bxf5 {

[%clk 00:15:11]

} {

[%emt 00:01:39]

} 31. Bxf5 {

[%clk 00:58:29]

} {

[%emt 00:00:23]

} exf5 {

[%clk 00:15:33]

} {

[%emt 00:00:09]

} 32. Qf6+ {

[%clk 00:58:54]

} {

[%emt 00:00:04]

} Qg7 {

[%clk 00:15:14]

} {

[%emt 00:00:49]

} 33. Qxd6 {

[%clk 00:58:51]

} {

[%emt 00:00:33]

} Rg8 {

[%clk 00:14:52]

} {

[%emt 00:00:52]

} 34. Qe5 {

[%clk 00:58:57]

} {

[%emt 00:00:24]

} Nd7 {

[%clk 00:13:36]

} {

[%emt 00:01:46]

} 35. Qxg7+ {

[%clk 00:59:21]

} {

[%emt 00:00:06]

} Rxg7 {

[%clk 00:14:00]

} {

[%emt 00:00:07]

} 36. Kh2 {

[%clk 00:59:43]

} {

[%emt 00:00:08]

} Rcg8 {

[%clk 00:14:04]

} {

[%emt 00:00:26]

} 37. Re2 {

[%clk 00:59:31]

} {

[%emt 00:00:42]

} Rg3 {

[%clk 00:13:43]

} {

[%emt 00:00:51]

} 38. Ne1 {

[%clk 00:59:10]

} {

[%emt 00:00:51]

} R3g7 {

[%clk 00:12:07]

} {

[%emt 00:02:05]

} 39. Rg2 {

[%clk 00:58:57]

} {

[%emt 00:00:42]

} Re7 {

[%clk 00:12:16]

} {

[%emt 00:00:22]

} 40. Rxg8+ {

[%clk 01:14:04]

} {

[%emt 00:00:24]

} Kxg8 {

[%clk 00:27:39]

} {

[%emt 00:00:07]

} 41. Nf3 {

[%clk 01:14:20]

} {

[%emt 00:00:13]

} Re2+ {

[%clk 00:27:20]

} {

[%emt 00:00:49]

} 42. Kg1 {

[%clk 01:14:41]

} {

[%emt 00:00:09]

} 1-0

[Event "Estonian Women's Chess Championship 2022"]
[Site "Tallinn, Paul Keres Chess House, Estonia"]
[Date "2022.12.11"]
[Round "2.1"]
[White "Haapsal, Maria Ioanna"]
[Black "Sinitsina, Anastassia"]
[Result "0-1"]
[TimeControl "90 minutes for first 40 moves and 15 min. for the rest of the game with 30 sec. increment from move 1"]
[BlackTitle "WFM"]
[WhiteFideId "4512286"]
[BlackFideId "4504640"]
[WhiteElo "1386"]
[BlackElo "2175"]

1. e4 {

[%clk 01:30:51]

} {

[%emt 00:00:08]

} e5 {

[%clk 01:30:28]

} {

[%emt 00:00:33]

} 2. Nf3 {

[%clk 01:31:12]

} {

[%emt 00:00:09]

} Nc6 {

[%clk 01:30:50]

} {

[%emt 00:00:08]

} 3. Bb5 {

[%clk 01:31:37]

} {

[%emt 00:00:06]

} a6 {

[%clk 01:31:16]

} {

[%emt 00:00:04]

} 4. Bxc6 {

[%clk 01:32:02]

} {

[%emt 00:00:05]

} dxc6 {

[%clk 01:31:40]

} {

[%emt 00:00:06]

} 5. O-O {

[%clk 01:32:23]

} {

[%emt 00:00:08]

} Bg4 {

[%clk 01:31:49]

} {

[%emt 00:00:22]

} 6. h3 {

[%clk 01:32:45]

} {

[%emt 00:00:08]

} h5 {

[%clk 01:32:12]

} {

[%emt 00:00:07]

} 7. d3 {

[%clk 01:31:59]

} {

[%emt 00:01:16]

} Qf6 {

[%clk 01:32:02]

} {

[%emt 00:00:40]

} 8. Be3 {

[%clk 01:31:44]

} {

[%emt 00:00:45]

} Bxf3 {

[%clk 01:28:55]

} {

[%emt 00:03:37]

} 9. Qxf3 {

[%clk 01:32:04]

} {

[%emt 00:00:10]

} Qxf3 {

[%clk 01:29:21]

} {

[%emt 00:00:04]

} 10. gxf3 {

[%clk 01:32:30]

} {

[%emt 00:00:04]

} Bd6 {

[%clk 01:28:32]

} {

[%emt 00:01:19]

} 11. Nd2 {

[%clk 01:30:54]

} {

[%emt 00:02:06]

} Ne7 {

[%clk 01:28:31]

} {

[%emt 00:00:31]

} 12. Nc4 {

[%clk 01:29:27]

} {

[%emt 00:01:58]

} Ng6 {

[%clk 01:28:51]

} {

[%emt 00:00:10]

} 13. Kg2 {

[%clk 01:25:04]

} {

[%emt 00:04:53]

} f5 {

[%clk 01:25:49]

} {

[%emt 00:03:32]

} 14. d4 {

[%clk 01:08:50]

} {

[%emt 00:16:43]

} Nh4+ {

[%clk 01:25:13]

} {

[%emt 00:01:06]

} 15. Kh1 {

[%clk 01:08:09]

} {

[%emt 00:01:11]

} exd4 {

[%clk 01:23:38]

} {

[%emt 00:02:05]

} 16. Bxd4 {

[%clk 00:51:07]

} {

[%emt 00:17:32]

} Nxf3 {

[%clk 01:14:41]

} {

[%emt 00:09:28]

} 17. e5 {

[%clk 00:43:35]

} {

[%emt 00:08:02]

} Be7 {

[%clk 01:07:34]

} {

[%emt 00:07:37]

} 18. Bc3 {

[%clk 00:42:09]

} {

[%emt 00:01:55]

} Ng5 {

[%clk 01:05:46]

} {

[%emt 00:02:18]

} 19. Kg2 {

[%clk 00:37:45]

} {

[%emt 00:04:53]

} Ne6 {

[%clk 01:05:45]

} {

[%emt 00:00:31]

} 20. f4 {

[%clk 00:35:09]

} {

[%emt 00:03:06]

} O-O-O {

[%clk 01:05:55]

} {

[%emt 00:00:22]

} 21. Ne3 {

[%clk 00:32:58]

} {

[%emt 00:02:41]

} Rhf8 {

[%clk 01:05:32]

} {

[%emt 00:00:53]

} 22. Kg3 {

[%clk 00:30:25]

} {

[%emt 00:03:02]

} g5 {

[%clk 01:05:49]

} {

[%emt 00:00:14]

} 23. Ng2 {

[%clk 00:29:43]

} {

[%emt 00:01:12]

} Rg8 {

[%clk 01:03:29]

} {

[%emt 00:02:50]

} 24. Kf3 {

[%clk 00:28:12]

} {

[%emt 00:02:01]

} g4+ {

[%clk 01:00:26]

} {

[%emt 00:03:32]

} 25. hxg4 {

[%clk 00:28:20]

} {

[%emt 00:00:22]

} Rxg4 {

[%clk 01:00:52]

} {

[%emt 00:00:04]

} 26. Rh1 {

[%clk 00:20:48]

} {

[%emt 00:08:02]

} Rdg8 {

[%clk 01:00:57]

} {

[%emt 00:00:26]

} 27. Rh2 {

[%clk 00:20:30]

} {

[%emt 00:00:47]

} Rg3+ {

[%clk 01:00:07]

} {

[%emt 00:01:20]

} 28. Kf2 {

[%clk 00:20:57]

} {

[%emt 00:00:04]

} Bc5+ {

[%clk 01:00:32]

} {

[%emt 00:00:05]

} 29. Kf1 {

[%clk 00:21:00]

} {

[%emt 00:00:25]

} Rf3+ {

[%clk 01:00:43]

} {

[%emt 00:00:20]

} 30. Ke1 {

[%clk 00:21:22]

} {

[%emt 00:00:07]

} Rf2 {

[%clk 01:00:46]

} {

[%emt 00:00:28]

} 31. Rxh5 {

[%clk 00:20:37]

} {

[%emt 00:01:15]

} Rgxg2 {

[%clk 01:00:46]

} {

[%emt 00:00:31]

} 32. Rh8+ {

[%clk 00:20:33]

} {

[%emt 00:00:33]

} Nf8 {

[%clk 01:00:29]

} {

[%emt 00:00:47]

} 33. Rh1 {

[%clk 00:20:48]

} {

[%emt 00:00:15]

} Rh2 {

[%clk 01:00:44]

} {

[%emt 00:00:15]

} 34. Rxh2 {

[%clk 00:20:56]

} {

[%emt 00:00:22]

} Rxh2 {

[%clk 01:01:10]

} {

[%emt 00:00:04]

} 35. b3 {

[%clk 00:21:00]

} {

[%emt 00:00:26]

} Ne6 {

[%clk 01:01:22]

} {

[%emt 00:00:18]

} 36. b4 {

[%clk 00:20:52]

} {

[%emt 00:00:38]

} Bxb4 {

[%clk 01:01:39]

} {

[%emt 00:00:13]

} 0-1

[Event "Estonian Women's Chess Championship 2022"]
[Site "Tallinn, Paul Keres Chess House, Estonia"]
[Date "2022.12.11"]
[Round "2.2"]
[White "Blokhin, Sofia"]
[Black "Ivanova, Lidia"]
[Result "1-0"]
[TimeControl "90 minutes for first 40 moves and 15 min. for the rest of the game with 30 sec. increment from move 1"]
[WhiteTitle "WFM"]
[WhiteFideId "4508190"]
[BlackFideId "4506480"]
[WhiteElo "2065"]
[BlackElo "1482"]

1. d4 {

[%clk 01:30:58]

} Nf6 {

[%clk 01:30:36]

} {

[%emt 00:00:24]

} 2. c4 {

[%clk 01:31:11]

} {

[%emt 00:00:09]

} g6 {

[%clk 01:30:57]

} {

[%emt 00:00:17]

} 3. Nc3 {

[%clk 01:31:27]

} {

[%emt 00:00:14]

} d5 {

[%clk 01:31:12]

} {

[%emt 00:00:15]

} 4. e3 {

[%clk 01:31:04]

} {

[%emt 00:00:54]

} Bg7 {

[%clk 01:31:26]

} {

[%emt 00:00:15]

} 5. Nf3 {

[%clk 01:31:03]

} {

[%emt 00:00:31]

} O-O {

[%clk 01:31:35]

} {

[%emt 00:00:22]

} 6. Bd3 {

[%clk 01:24:13]

} {

[%emt 00:07:20]

} c5 {

[%clk 01:31:37]

} {

[%emt 00:00:28]

} 7. cxd5 {

[%clk 01:12:36]

} {

[%emt 00:12:07]

} cxd4 {

[%clk 01:27:43]

} {

[%emt 00:04:25]

} 8. Nxd4 {

[%clk 01:09:41]

} {

[%emt 00:03:25]

} Nxd5 {

[%clk 01:24:25]

} {

[%emt 00:03:47]

} 9. Ndb5 {

[%clk 01:04:30]

} {

[%emt 00:05:41]

} Nxc3 {

[%clk 01:05:30]

} {

[%emt 00:19:25]

} 10. Nxc3 {

[%clk 01:03:03]

} {

[%emt 00:01:58]

} Bxc3+ {

[%clk 01:03:36]

} {

[%emt 00:02:24]

} 11. bxc3 {

[%clk 01:03:26]

} {

[%emt 00:00:07]

} Qa5 {

[%clk 01:03:37]

} {

[%emt 00:00:27]

} 12. Qc2 {

[%clk 00:58:14]

} {

[%emt 00:05:42]

} Rd8 {

[%clk 00:58:52]

} {

[%emt 00:05:15]

} 13. O-O {

[%clk 00:52:14]

} {

[%emt 00:06:31]

} Nc6 {

[%clk 00:57:00]

} {

[%emt 00:02:22]

} 14. f4 {

[%clk 00:49:48]

} {

[%emt 00:02:56]

} e6 {

[%clk 00:41:02]

} {

[%emt 00:16:28]

} 15. Re1 {

[%clk 00:44:15]

} {

[%emt 00:06:03]

} Qd5 {

[%clk 00:31:05]

} {

[%emt 00:10:27]

} 16. Bf1 {

[%clk 00:42:16]

} {

[%emt 00:02:29]

} Qc5 {

[%clk 00:28:30]

} {

[%emt 00:03:04]

} 17. a3 {

[%clk 00:38:08]

} {

[%emt 00:04:39]

} e5 {

[%clk 00:25:50]

} {

[%emt 00:03:10]

} 18. Kh1 {

[%clk 00:31:38]

} {

[%emt 00:06:59]

} exf4 {

[%clk 00:24:05]

} {

[%emt 00:02:16]

} 19. e4 {

[%clk 00:29:12]

} {

[%emt 00:02:56]

} Be6 {

[%clk 00:12:58]

} {

[%emt 00:11:36]

} 20. Bxf4 {

[%clk 00:27:14]

} {

[%emt 00:02:28]

} Rac8 {

[%clk 00:13:05]

} {

[%emt 00:00:23]

} 21. Rab1 {

[%clk 00:22:40]

} {

[%emt 00:05:04]

} Rd7 {

[%clk 00:12:09]

} {

[%emt 00:01:26]

} 22. a4 {

[%clk 00:20:39]

} {

[%emt 00:02:31]

} Ne5 {

[%clk 00:08:27]

} {

[%emt 00:04:12]

} 23. Rb5 {

[%clk 00:19:44]

} {

[%emt 00:01:26]

} Qa3 {

[%clk 00:03:38]

} {

[%emt 00:05:19]

} 24. Bxe5 {

[%clk 00:18:16]

} {

[%emt 00:01:57]

} Rcd8 {

[%clk 00:02:19]

} {

[%emt 00:01:49]

} 25. Qf2 {

[%clk 00:16:37]

} {

[%emt 00:02:09]

} f5 {

[%clk 00:01:10]

} {

[%emt 00:01:39]

} 26. exf5 {

[%clk 00:16:21]

} {

[%emt 00:00:46]

} Bxf5 {

[%clk 00:01:34]

} {

[%emt 00:00:07]

} 27. Bc4+ {

[%clk 00:16:39]

} {

[%emt 00:00:12]

} Kf8 {

[%clk 00:01:20]

} {

[%emt 00:00:44]

} 28. Qh4 {

[%clk 00:16:40]

} {

[%emt 00:00:27]

} 1-0